Cogmind - Beta 16.1 @@@ ROGUE MODE // 2026.04.01 @ 16:44:08 Player: Elxavo Result: Destroyed by S-10 Pest with Light Assault Rifle Performance ------------- Evolutions (0) 0 Regions Visited (1) 200 Robots Destroyed (12) 60 Value Destroyed (264) 264 Prototype IDs (0) 0 Alien Tech Used (0) 0 Bonus (0) 0 TOTAL SCORE: 524 Bonus ------- None Cogmind --------- Core Integrity 0/250 Matter 265/300 Energy 250/250 System Corruption 1% Temperature Cool (0) Movement Treading (480) Ox4 Location -10/Materials Parts ------- > --- POWER (1) -------- Ion Engine > --- PROPULSION (2) --- Light Treads Aluminum Leg > --- UTILITY (2) ------ Huge Storage Unit Seismic Detector > --- WEAPON (2) ------- Light Assault Rifle > --- INVENTORY (25) --- Ion Engine Light Ion Engine Light Ion Engine Light Treads Medium Matter Pod (97) Medium Matter Pod (0) Medium Matter Pod (0) Structural Scanner Structural Scanner Signal Interpreter Targeting Computer Core Shielding Core Shielding Tractor Beam Mining Laser Peak State ------------ > --- POWER ------------ Ion Engine > --- PROPULSION ------- Aluminum Leg Aluminum Leg > --- UTILITY ---------- Huge Storage Unit Seismic Detector > --- WEAPON ----------- Assault Rifle Light Assault Rifle > --- INVENTORY -------- Ion Engine Light Ion Engine Light Treads Light Treads Structural Scanner Signal Interpreter Targeting Computer Core Shielding Tractor Beam Mining Laser [Rating: 8] Favorites ----------- Power Ion Engine Engine Ion Engine Propulsion Aluminum Leg Treads Light Treads Leg Aluminum Leg Utility Seismic Detector Device Seismic Detector Storage Huge Storage Unit Weapon Light Assault Rifle Ballistic Gun Light Assault Rifle Build | -11 -10 ------- Run | Yrd Mat Slots Evolved . | . . Power . | . . Propulsion . | . . Utility . | . . Weapon . | . . Parts Attached 11 | 7 4 Power 2 | 1 1 Engine 2 | 1 1 Core . | . . Reactor . | . . Propulsion 4 | 2 2 Treads 1 | . 1 Leg 3 | 2 1 Wheel . | . . Hover . | . . Flight . | . . Utility 3 | 2 1 Device 1 | 1 . Storage 2 | 1 1 Processor . | . . Hackware . | . . Protection . | . . Artifact . | . . Weapon 2 | 2 . Energy Gun . | . . Energy Cannon . | . . Ballistic Gun 2 | 2 . Ballistic Cannon . | . . Launcher . | . . Special Weapon . | . . Impact Weapon . | . . Slashing Weapon . | . . Piercing Weapon . | . . Special Melee Weapon . | . . Unidentified Prototypes . | . . Parts Lost 3 | . 3 Power . | . . Propulsion 2 | . 2 Utility . | . . Weapon 1 | . 1 Highest Loss Streak 3 | . 3 To Critical Strikes . | . . Average Backups 10 | 3 11 Power 1 | . 2 Propulsion 2 | 2 2 Utility 4 | . 5 Weapon 1 | . 1 Tool/Special . | . . Unused Backups 16 | . 16 Power 2 | . 2 Propulsion 2 | . 2 Utility 10 | . 10 Weapon 2 | . 2 Tool/Special . | . . Average Slot Usage (%) 98 | . 98 Engine 14 | . 14 Leg 27 | . 27 Device 13 | . 13 Storage 14 | . 14 Ballistic Gun 27 | . 27 Peak Build Rating 8 | 7 8 Average Rating 7 | 5 7 On Entrance 3 | . 7 Avg Prop Armor Cover (%) . | . . Naked Turns . | . . Heaviest Build 89 | 12 89 Greatest Support 20 | 20 20 Greatest Overweight (x) 8 | 2 8 Average Overweight (x) 2 | . 2 Largest Inventory Capacity 25 | 8 25 Average Capacity 18 | 7 19 Most Carried 17 | 8 17 Average Carried 10 | 4 11 Final Capacity 25 | 8 25 Final Carried 15 | 8 15 Class Distribution -------------------- 100% | Mutant Dominant Class ---------------- Mutant | -10/Materials Resources | -11 -10 ----------- Run | Yrd Mat Matter Collected 604 | 306 298 Remotely . | . . Salvage Created 481 | 131 350 Parts 27 | 7 20 Haulers Intercepted . | . . Recyclers Shooed 1 | . 1 Parts Field Recycled . | . . Retrieved Matter . | . . Parts Self-Destructed . | . . Prevented . | . . Parts Restored . | . . Kills | -11 -10 ------- Run | Yrd Mat Combat Hostiles Destroyed 6 | . 6 Guns 6 | . 6 Classes Destroyed 5 | 2 3 Tunneler 2 | 2 . Recycler 2 | 1 1 Watcher 2 | . 2 Swarmer 1 | . 1 Grunt 5 | . 5 Best Kill Streak 2 | 2 2 Combat Bots Only 1 | . 1 Max Kills in Single Turn 1 | 1 1 Gunslinging . | . . Exploded . | . . Melee . | . . Uniques/NPCs Destroyed . | . . Combat | -11 -10 -------- Run | Yrd Mat Hostile Shots Fired 93 | . 93 Missed 29 | . 29 Hits 64 | . 64 Projectile 64 | . 64 Critical Strikes 6 | . 6 Damage Taken 697 | . 697 Core 254 | . 254 Absorbed by Shields . | . . Regen/Repaired (Parts) 15 | . 15 Core Remaining (%) 100 | 100 . Volleys Fired 74 | 9 65 Largest 2 | 2 2 Hottest 40 | 40 40 Shots Fired 129 | 18 111 Gun 129 | 18 111 Cannon . | . . Launcher . | . . Special . | . . Kinetic 129 | 18 111 Thermal . | . . Explosive . | . . Electromagnetic . | . . Robot Hit Streak 12 | 7 12 Robot Miss Streak 5 | 1 5 Penetration Max . | . . Secondary Targets . | . . Shots Hit Robots 79 | 14 65 Core Hits 27 | 4 23 Critical Kills 1 | . 1 Critical Parts Destroyed 1 | 1 . Critical Strikes 2 | 1 1 Destroy 2 | 1 1 Melee Attacks . | . . Impact . | . . Slashing . | . . Piercing . | . . Sneak Attacks . | . . Combat Hostiles . | . . Follow-up Attacks . | . . Damage Inflicted 783 | 162 621 Guns 783 | 162 621 Cannons . | . . Explosions . | . . Melee . | . . Ramming . | . . Kinetic 783 | 162 621 Thermal . | . . Explosive . | . . Electromagnetic . | . . Impact . | . . Slashing . | . . Piercing . | . . Highest Corruption 1 | . 1 Average Corruption 1 | . 1 Corruption Purged . | . . Corruption Blocked . | . . Effects 3 | . 3 Message Errors 1 | . 1 Data Loss (minor) 1 | . 1 Misfires 1 | . 1 Overload Shots . | . . Overflow Damage . | . . Projectiles . | . . Explosions . | . . Melee . | . . Knockbacks . | . . Impact . | . . Kinetic . | . . Secondary . | . . Self-Inflicted Damage . | . . Shots . | . . Rammed . | . . Targets Rammed . | . . Kicked . | . . Crushed . | . . Highest Temperature 43 | . 43 Average Temperature 14 | . 14 Received Heat Transfer 324 | . 324 Siege Activations . | . . Martial Activations . | . . Shielding Activations . | . . Robots Disrupted . | . . Combat Hostiles . | . . Robots Corrupted . | . . Combat Hostiles . | . . Parts Fried . | . . Impact Corruptions . | . . Robots Melted . | . . Combat Hostiles . | . . Parts Melted . | . . Heat Transferred . | . . Parts Sabotaged . | . . Parts Stolen . | . . Parts Stripped . | . . Power Chain Reactions . | . . Alert | -11 -10 ------- Run | Yrd Mat Maximum Alert Level . | . . Low Security (%) 100 | 100 100 Level 1 . | . . Level 2 . | . . Level 3 . | . . Level 4 . | . . Level 5 . | . . High Security . | . . Max Security . | . . Peak Influence 67 | 10 67 Initial 3 | . 3 Average 10 | 1 11 Influence Increases 280 | 15 265 Destroy 0b10 Robot/C 120 | . 120 Destroy 0b10 Robot/NC 30 | 15 15 Destroy Leader 34 | . 34 Successful Hack 51 | . 51 Lose Combat Pursuer 45 | . 45 Influence Decreases 231 | 10 221 Entered New Map 2 | . 2 Time Decay 199 | 10 189 Lost Part 30 | . 30 Squads Dispatched 1 | . 1 Investigation . | . . Extermination . | . . Reinforcement 1 | . 1 Assault . | . . Garrison . | . . Intercept . | . . Searches Triggered . | . . Construction Impeded . | . . Haulers Reinforced . | . . Active Scanning Responses . | . . Cargo Convoy Interrupts . | . . Stealth | -11 -10 --------- Run | Yrd Mat Distress Signals . | . . Communications Jammed . | . . Distress Signals . | . . Times Spotted 17 | . 17 Peak Tracking Total 3 | . 3 Tactical Retreats 2 | . 2 Traps | -11 -10 ------- Run | Yrd Mat Traps Triggered . | . . Indirectly . | . . Trap Hack Attempts . | . . Triggered . | . . Disarmed . | . . Reprogrammed . | . . Reused . | . . Traps Extracted . | . . Installed . | . . Triggered . | . . Machines | -11 -10 ---------- Run | Yrd Mat Machines Disabled . | . . Max in Single Turn . | . . Machines Repaired . | . . Machines Dismantled . | . . Machines Sabotaged . | . . Overloaded Fab Kills . | . . Hacking | -11 -10 --------- Run | Yrd Mat Machines Accessed 4 | . 4 Terminals 3 | . 3 Fabricators . | . . Repair Stations 1 | . 1 Recycling Units . | . . Scanalyzers . | . . Garrison Access . | . . Total Hacks 16 | . 16 Successful 7 | . 7 Failed 9 | . 9 Catastrophic . | . . Database Lockouts . | . . Manual . | . . Terminals 11 | . 11 Fabricators . | . . Repair Stations 5 | . 5 Recycling Units . | . . Scanalyzers . | . . Garrison Access . | . . Terminal Hacks 5 | . 5 Robot Analysis 1 | . 1 Terminal Index 1 | . 1 Locate Traps 2 | . 2 Zone Layout 1 | . 1 Fabricator Hacks . | . . Repair Station Hacks 2 | . 2 Scan Component 1 | . 1 Repair 1 | . 1 Recycling Unit Hacks . | . . Scanalyzer . | . . Garrison Access Hacks . | . . Unauthorized Hacks . | . . Terminals . | . . Fabricators . | . . Repair Stations . | . . Recycling Units . | . . Scanalyzers . | . . Garrison Access . | . . Data Cores Recovered . | . . Used . | . . Hacking Detections 4 | . 4 Full Trace Events 1 | . 1 Feedback Events 1 | . 1 Corruption 1 | . 1 Feedback Blocked . | . . Robot Schematics Acquired . | . . Robots Built . | . . Authchips . | . . Time . | . . Total Robot Build Rating . | . . Part Schematics Acquired . | . . Parts Built . | . . Authchips . | . . Time . | . . Total Part Build Rating . | . . Part Studies Acquired . | . . Parts Repaired 1 | . 1 Time 26 | . 26 Parts Recycled . | . . Recycled Matter . | . . Retrieved Matter . | . . Retrieved Components . | . . Parts Scanalyzed . | . . Part Schematics Acquired . | . . Parts Damaged . | . . Bothacking | -11 -10 ------------ Run | Yrd Mat Used RIF Installer . | . . Robots Hacked . | . . Non-combat . | . . Combat . | . . Robot Hacks Applied . | . . Relay Couplers Released . | . . Fabnet Peak Effective % . | . . Robots Rewired . | . . Allies Hacked . | . . Hacks Repelled . | . . Allies | -11 -10 -------- Run | Yrd Mat Total Allies . | . . Largest Group . | . . Highest-Rated Group . | . . Highest-Rated Ally . | . . Total Orders . | . . Ally Attacks . | . . Total Damage . | . . Kills . | . . Allies Corrupted . | . . Allies Melted . | . . Intel | -11 -10 ------- Run | Yrd Mat Active Infowar (turns) 1486 | 33 1453 Seismic 1486 | 33 1453 Robot Analysis Total 1 | . 1 Derelict Logs Recovered . | . . Drone Launches . | . . Drone Recoveries . | . . Exploration | -11 -10 ------------- Run | Yrd Mat Turns Passed 1595 | 115 1480 Spaces Moved 346 | 61 285 Core 6 | 6 . Treads . | . . Legs 340 | 55 285 Wheels . | . . Hover . | . . Flight . | . . Fastest Speed 50 | 50 120 Average Speed 290 | 118 327 Slowest Speed 680 | 150 680 Overloaded Moves . | . . Propulsion Burnouts . | . . Robots Hopped . | . . Potential Cave-ins . | . . Cave-ins Triggered . | . . Exploration Rate (%) 19 | 3 35 Regions Visited 1 Branch Regions . Pre-discovered Areas . | . . Known Exits Taken . | . . Unknown Exits Taken 1 | 1 . Scrap Searched . | . . Spaces Dug . | . . Terrain Destroyed . | . . Melee . | . . Projectile . | . . AOE . | . . Terrain Rammed . | . . Walls Destroyed . | . . Machines Disabled . | . . Actions | -11 -10 --------- Run | Yrd Mat Total 822 | 84 738 Wait 367 | . 367 Move 345 | 60 285 Hop . | . . Pick Up 20 | 8 12 Fast Attach 7 | 7 . Attach 3 | . 3 Detach . | . . Swap 2 | . 2 Drop 4 | . 4 Fire 74 | 9 65 Melee . | . . Ram . | . . Kick . | . . Crush . | . . Escape Stasis . | . . Rewire . | . . Trap . | . . Miscellaneous . | . . Route ------- -11/Scrapyard -10/Materials (discovered 1 exit: [*Mat]) History --------- Turn | Location | Event 2 | -11/Scrapyard | Met Revision 17 7 | -11/Scrapyard | Discovered new exit (range 16) 116 | -11/Scrapyard | Entered Materials 304 | -10/Materials | Build established: Mutant 1145 | -10/Materials | Repaired Seismic Detector 1231 | -10/Materials | Discovered new exit (range 12) 1426 | -10/Materials | Core integrity fell below 50% 1581 | -10/Materials | Core integrity fell below 20% 1596 | -10/Materials | Destroyed by S-10 Pest with Light Assault Rifle Last Messages --------------- 01400_ Acquired 25 matter. 01403_ K-01 Serf collects debris. 01405_ Critical hit (Burn: +37). 01408_ R-06 Scavenger collects Sml. Matter Pod. 01409_ Critical hit (Burn: +37). 01411_ R-06 Scavenger collects Wheel. 01426_ G-47 Trooper destroyed. 01433_ Acquired 41 matter. 01444_ K-01 Serf collects debris. 01451_ K-01 Serf cleans the Terminal. 01461_ Acquired 7 matter. 01471_ System corrupted: Component data lost. 01481_ Acquired 46 matter. 01537_ Aluminum Leg destroyed. 01539_ S-10 Pest destroyed. 01541_ Acquired 15 matter. 01544_ ULMVJ%JTFW5HF:0TXWUK32#RJGACU/ 01555_ Acquired Lgt. Ion Engine. 01556_ Assault Rifle destroyed. 01574_ Aluminum Leg destroyed. Map ----- +----------------------------------------------------+ | ?????????????????????????????????????????????????? | | ?????????????????????????????????????????????????? | | ?????????????????????????????????????????????????? | | ?????????????????????????????????????????????????? | | ?????????????????????????????????????????????????? | | ?????????????????????????????????????????????????? | | ????????? ?????????????????????????????????????? | | ????????# #????????????????????????????????????? | | ????????# #????????????????????????????????????? | | ????????# #????????????????????????????????????? | | ????????# #????????????????????????????????????? | | ????????# #????????????????????????????????????? | | ????????# #????????????????????????????????????? | | ????????# #????????????????????????????????????? | | ????????# #############????????????????????????? | | ????????# # = #????????????????????????? | | ######### # """ #????????????????????????? | | # #! """"" #????????????????????????? | | # # """"" #????????????????????????? | | """ # # """"" #????????????????????????? | | """""^# # """ #????????????????????????? | | """"" + + #????????????????????????? | | """"" # #############????????????????????????? | | """ # # #???????????????????????????? | | # # = ###############?????????????? | | # # s @ #????????? | | ######### # #####s ########???#????????? | | ????????# + = #???# # #? #????????? | | ????????# # != #???# + # #????????? | | ????????# =%# #???# ### + #????????? | | ????????# *# #??## ### # #????????? | | ????????# # #??# ## # # """ # | | ??????### ##########??# T / # # """ # | | ?????##T# #???????????# =######### # # | | ?????# #???????????## ########?# + """ # | | ?????# #????????????# # #?# # """ # | | ?????# ############## # #?# # """ # | | ?????# % + " " #?#^^^# # | | ?????# ############## # "R" #?#^^^########## | | ?????# #?????######?# # """ #?# #????????# | | ???###+##+# #?????# #?# # #?# #????????# | | ???# # #?????# #?# ########?# #????????# | | ???# # ####### #?# ########## #????????# | | ???# """ + %! *=+ |#?# #????????# | | ???# """ #####T# # | #?############ #????????# | | ???# """ #???### #[ #????????????# ###??????# | | ???# #?????# ######????????????# T#??????# | | ???########?##### # #????????????# ""#??????# | | ????????????# [ # #????????????# ###??????# | | ????????????# # #????????????# #????????# | +----------------------------------------------------+ Best States ------------- Heat Dissipation 25 Energy Generation 10 Energy Capacity 250 Matter Stores 300 Matter Capacity 300 Sight Range 16 Terrain Scan Density 10 Evasion (%) 55 Item Schematics ----------------- None Robot Schematics ------------------ None Fabricated ------------ Nothing Repaired ---------- Seismic Detector | 25% | -10/Materials Studied --------- None Alien Tech Used ----------------- None Achievements -------------- You Again Challenges ------------ None Game ------ Seed OvertunedZioniteAutominer Manual? 0 Play Time 00:15:10 Cumulative 60.3 hours Start 2026.04.01 @ 16:27:53 End 2026.04.01 @ 16:44:08 Sessions 1 Manual Loads 0 Difficulty Rogue Special Mode None Game No. 76 Rogue 76 Adventurer 0 Explorer 0 Win Type - Total 0 Types 0/0/0/0/0/0/0/0/0/0 Lore% 30 Gallery% 23 Achievement% 17 Wizard Run 0 Options --------- Layout 0 ASCII 0 Keyboard 0 Movement Mouse Keybinds 0 Fullscreen 1 Font 18/SmallcapsGlow Map View 76x50 Zoom Use 0% Tactical HUD 1 Map Filters NONE Filters LOW_CONTRAST(13,24,33) Steam 1 RUN: 43421bd0-3fef-45c5-987b-26b789001bb2